fUSD/lending_fUSD_20240406
["ID","MTS","AMOUNT","RATE_DAILY","PERIOD"]
[321707365,1712421043430,-257.31134319,0.00021761,4]
[321707366,1712421043439,-150.0,0.00021761,4]
[321707367,1712421043448,-150.0,0.00021761,4]
[321707368,1712421043458,-150.0,0.00021775,4]
[321707369,1712421043468,-150.0,0.00021781,4]
[321707370,1712421043477,-257.31134319,0.00021784,4]
[321707371,1712421043487,-153.07,0.00021793,2]
[321707372,1712421043496,-257.31134319,0.00021808,4]
[321707373,1712421043505,-150.0,0.00021812,4]
[321707374,1712421043514,-150.0,0.00021816,4]
[321707375,1712421043524,-255.3859,0.00021817,2]
[321707376,1712421043533,-3846.266091,0.00021817,2]
[321707377,1712421043546,-257.31134319,0.00021831,4]
[321707378,1712421043555,-150.0,0.00021843,4]
[321707379,1712421043565,-257.31134319,0.00021855,4]
[321707381,1712421043574,-150.0,0.00021858,4]
[321707383,1712421043584,-1660.04604152,0.00021873,2]
[321707385,1712421043593,-307.12916536,0.00021873,2]
[321707387,1712421043603,-1079.88322806,0.00021873,2]
[321707389,1712421043612,-370.43258214,0.00021873,2]
[321707391,1712421043622,-150.0,0.00021873,4]
[321707393,1712421043631,-257.31134319,0.00021878,4]
[321707394,1712421043641,-621.10730524,0.00021889,2]
[321707397,1712421043650,-150.0,0.0002189,4]
[321707398,1712421043660,-156.82066819,0.00021895,2]
[321707399,1712421043670,-150.0,0.000219,4]
[321707400,1712421043680,-257.31134319,0.00021902,4]
[321707401,1712421043690,-153.07,0.00021902,2]
[321707402,1712421043699,-150.0,0.00021904,4]
[321707403,1712421043709,-452.96604982,0.00021916,2]
[321707405,1712421043719,-343.78021361,0.00021916,2]
[321707406,1712421043728,-1132.62855501,0.00021916,2]
[321707408,1712421043738,-500.72374706,0.00021917,2]
[321707410,1712421043748,-500.0,0.00021917,2]
[321707411,1712421043757,-500.0,0.00021917,2]
[321707412,1712421043767,-500.0,0.00021917,2]
[321707413,1712421043776,-500.0,0.00021917,2]
[321707414,1712421043785,-1059.79,0.00021917,2]
[321707415,1712421043795,-1059.79,0.00021917,2]
[321707416,1712421043808,-1059.79,0.00021917,2]
[321707417,1712421043821,-558.35,0.00021917,2]
[321707418,1712421043831,-558.35,0.00021917,2]
[321707419,1712421043842,-558.35,0.00021917,2]
[321707420,1712421043852,-811.29,0.00021917,2]
[321707421,1712421043861,-811.29,0.00021917,2]
[321707422,1712421043871,-811.29,0.00021917,2]
[321707423,1712421043880,-500.0,0.00021917,2]
[321707424,1712421043890,-500.0,0.00021917,2]
[321707425,1712421043900,-229.94,0.00021917,2]
[321707426,1712421043910,-500.0,0.00021917,2]
[321707427,1712421043919,-500.0,0.00021917,2]
[321707428,1712421043928,-500.0,0.00021917,2]
[321707429,1712421043939,-543.59841163,0.00021917,2]
[321707430,1712421043948,-500.0,0.00021917,2]
[321707431,1712421043958,-500.0,0.00021917,2]
[321707432,1712421043967,-500.0,0.00021917,2]
[321707433,1712421043976,-655.43,0.00021917,2]
[321707434,1712421043986,-655.43,0.00021917,2]
[321707435,1712421043995,-655.43,0.00021917,2]
[321707436,1712421044004,-1380.55,0.00021917,2]
[321707437,1712421044014,-1380.55,0.00021917,2]
[321707438,1712421044023,-1380.55,0.00021917,2]
[321707439,1712421044033,-953.8,0.00021917,2]
[321707440,1712421044042,-953.8,0.00021917,2]
[321707441,1712421044052,-953.8,0.00021917,2]
[321707442,1712421044061,-500.0,0.00021917,2]
[321707443,1712421044071,-441.78,0.00021917,2]
[321707444,1712421044081,-500.0,0.00021917,2]
[321707445,1712421044091,-500.0,0.00021917,2]
[321707446,1712421044103,-500.0,0.00021917,2]
[321707447,1712421044112,-414.03,0.00021917,2]
[321707448,1712421044121,-2508.53,0.00021917,2]
[321707449,1712421044131,-2508.53,0.00021917,2]
[321707450,1712421044141,-2508.53,0.00021917,2]
[321707451,1712421044151,-500.0,0.00021917,2]
[321707452,1712421044161,-500.0,0.00021917,2]
[321707453,1712421044170,-500.0,0.00021917,2]
[321707454,1712421044180,-807.17,0.00021917,2]
[321707455,1712421044189,-807.17,0.00021917,2]
[321707456,1712421044198,-807.17,0.00021917,2]
[321707457,1712421044210,-1494.39,0.00021918,2]
[321707458,1712421044219,-250.0,0.00021918,2]
[321707459,1712421044229,-257.31134319,0.00021926,4]
[321707460,1712421044238,-150.0,0.00021935,4]
[321707461,1712421044248,-150.0,0.00021941,4]
[321707462,1712421044258,-257.31134319,0.00021949,4]
[321707463,1712421044267,-150.61,0.00021962,2]
[321707464,1712421044277,-150.61,0.00021962,2]
[321707465,1712421044286,-150.61,0.00021962,2]
[321707466,1712421044295,-150.61,0.00021962,2]
[321707467,1712421044305,-177.46028582,0.00021962,2]
[321707468,1712421044314,-150.0,0.00021965,4]
[321707469,1712421044324,-500.0,0.00021971,2]
[321707470,1712421044333,-500.0,0.00021971,2]
[321707471,1712421044343,-500.0,0.00021971,2]
[321707472,1712421044352,-1256.87,0.00021971,2]
[321707473,1712421044362,-1256.87,0.00021971,2]
[321707474,1712421044372,-1256.87,0.00021971,2]
[321707475,1712421044381,-505.94,0.00021971,2]
[321707476,1712421044391,-505.94,0.00021971,2]
[321707477,1712421044400,-505.94,0.00021971,2]
[321707478,1712421044409,-511.26707401,0.00021971,2]
[321707479,1712421044419,-500.0,0.00021971,2]
[321707480,1712421044428,-368.76,0.00021971,2]
[321707481,1712421044437,-591.8,0.00021971,2]
[321707482,1712421044447,-591.8,0.00021971,2]
[321707483,1712421044456,-591.8,0.00021971,2]
[321707484,1712421044467,-500.0,0.00021971,2]
[321707485,1712421044476,-500.0,0.00021971,2]
[321707486,1712421044486,-500.0,0.00021971,2]
[321707487,1712421044495,-500.0,0.00021971,2]
[321707488,1712421044505,-2139.28,0.00021971,2]
[321707489,1712421044513,-2139.28,0.00021971,2]
[321707490,1712421044523,-2139.28,0.00021971,2]
[321707491,1712421044532,-500.0,0.00021971,2]
[321707492,1712421044541,-527.89938273,0.00021971,2]
[321707493,1712421044551,-805049.54646947,0.00021972,2]
[321707494,1712421044561,-800.0,0.00021973,2]
[321707495,1712421044570,-257.31134319,0.00021973,4]
[321707496,1712421044579,-150.0,0.00021983,4]
[321707497,1712421044589,-1057.50232524,0.00021989,2]
[321707498,1712421044598,-1949.04877395,0.00021989,2]
[321707499,1712421044608,-500.0,0.00021989,2]
[321707500,1712421044617,-1256.87,0.00021989,2]
[321707501,1712421044626,-505.94,0.00021989,2]
[321707502,1712421044635,-591.8,0.00021989,2]
[321707503,1712421044645,-500.0,0.00021989,2]
[321707504,1712421044654,-2139.28,0.00021989,2]
[321707505,1712421044663,-38603.6170746,0.0002199,2]
[321707506,1712421044673,-7276.6011038,0.0002199,2]
[321707507,1712421044683,-10801.7103775,0.0002199,2]
[321707508,1712421044692,-19704.2999999,0.0002199,2]
[321707509,1712421044702,-150.61,0.00021995,2]
[321707510,1712421044712,-150.0,0.00021996,4]
[321707511,1712421044721,-257.31134319,0.00021996,4]
[321707512,1712421044731,-1282.80362323,0.00021998,2]
[321707513,1712421044741,-156351.16341079,0.00022,4]
[321707514,1712421044750,-640.34666034,0.00022,2]
[321707515,1712421044759,-783.12017279,0.00022,2]
[321707516,1712421044769,-312.71800175,0.00022,2]
[321707517,1712421044778,-408.97,0.00022,2]
[321707518,1712421044788,-1000.0,0.00022,2]
[321707519,1712421044798,-500.0,0.00022003,2]
[321707520,1712421044808,-500.0,0.00022003,2]
[321707521,1712421044819,-1380.55,0.00022003,2]
[321707522,1712421044830,-500.0,0.00022003,2]
[321707523,1712421044841,-807.17,0.00022003,2]
[321707524,1712421044850,-2104.75,0.00022004,2]
[321707525,1712421044859,-500.0,0.00022004,2]
[321707526,1712421044871,-500.0,0.00022004,2]
[321707527,1712421044881,-1059.79,0.00022004,2]
[321707528,1712421044891,-558.35,0.00022004,2]
[321707529,1712421044902,-166.62208938,0.00022004,2]
[321707530,1712421044912,-821.64,0.00022004,2]
[321707531,1712421044935,-811.29,0.00022004,2]
[321707532,1712421044945,-2825.29,0.00022004,2]
[321707533,1712421044955,-3240.54,0.00022004,2]
[321707534,1712421044965,-2190.69,0.00022004,2]
[321707535,1712421044975,-655.43,0.00022004,2]
[321707536,1712421044984,-953.8,0.00022004,2]
[321707537,1712421044994,-339.10228878,0.00022004,2]
[321707538,1712421045004,-500.0,0.00022004,2]
[321707539,1712421045013,-500.0,0.00022004,2]
[321707540,1712421045023,-2508.53,0.00022004,2]
[321707541,1712421045033,-151.0,0.00022005,7]
[321707542,1712421045043,-153.07,0.00022011,2]
[321707543,1712421045052,-257.31134319,0.0002202,4]
[321707544,1712421045062,-150.0,0.0002202,4]
[321707545,1712421045072,-150.0,0.00022024,4]
[321707546,1712421045082,-150.0,0.00022027,4]
[321707547,1712421045092,-257.31134319,0.00022043,4]
[321707548,1712421045101,-150.0,0.00022057,4]
[321707549,1712421045111,-150.0,0.00022066,4]
[321707550,1712421045121,-257.31134319,0.00022067,4]
[321707551,1712421045130,-150.0,0.00022088,4]
[321707552,1712421045139,-257.31134319,0.0002209,4]
[321707553,1712421045149,-394.0,0.000221,2]
[321707554,1712421045158,-7875.82827475,0.00022101,2]
[321707555,1712421045167,-167.33386992,0.00022101,2]
[321707556,1712421045177,-307.12916528,0.00022106,2]
[321707557,1712421045186,-150.0,0.00022108,4]
[321707558,1712421045196,-257.31134319,0.00022114,4]
[321707559,1712421045205,-150.0,0.00022119,4]
[321707560,1712421045215,-257.31134319,0.00022138,4]
[321707561,1712421045225,-150.0,0.00022149,4]
[321707562,1712421045235,-150.0,0.00022149,4]
[321707563,1712421045245,-150.0,0.00022149,4]
[321707564,1712421045256,-3846.26609095,0.00022159,2]
[321707565,1712421045266,-257.31134319,0.00022161,4]
[321707566,1712421045276,-283.44,0.0002217,15]
[321707567,1712421045286,-587.08785,0.0002217,2]
[321707568,1712421045296,-150.0,0.0002218,4]
[321707569,1712421045306,-150.5,0.0002218,15]
[321707570,1712421045316,-257.31134319,0.00022185,4]
[321707571,1712421045325,-150.5,0.0002219,15]
[321707572,1712421045336,-150.5,0.0002219,15]
[321707573,1712421045346,-150.61,0.0002219,2]
[321707574,1712421045356,-150.61,0.0002219,2]
[321707575,1712421045366,-150.61,0.0002219,2]
[321707576,1712421045376,-150.61,0.0002219,2]
[321707577,1712421045385,-150.0,0.00022191,4]
[321707578,1712421045395,-302.94,0.00022198,2]
[321707579,1712421045405,-379.06,0.00022198,2]
[321707580,1712421045417,-306.70218103,0.00022198,2]
[321707581,1712421045427,-574.74,0.00022198,2]
[321707582,1712421045438,-170.12388627,0.00022198,2]
[321707583,1712421045448,-192.0870333,0.00022198,2]
[321707584,1712421045457,-160.79,0.00022198,2]
[321707585,1712421045467,-2104.75,0.00022199,2]
[321707586,1712421045477,-2104.75,0.00022199,2]
[321707587,1712421045486,-2104.75,0.00022199,2]
[321707588,1712421045496,-2104.75,0.00022199,2]
[321707589,1712421045506,-500.0,0.00022199,2]
[321707590,1712421045515,-2104.75,0.00022199,2]
[321707591,1712421045525,-500.0,0.00022199,2]
[321707592,1712421045535,-500.0,0.00022199,2]
[321707593,1712421045545,-500.0,0.00022199,2]
[321707594,1712421045555,-500.0,0.00022199,2]
[321707595,1712421045564,-312.32,0.00022199,2]
[321707596,1712421045574,-1059.79,0.00022199,2]
[321707597,1712421045586,-1059.79,0.00022199,2]
[321707598,1712421045595,-1059.79,0.00022199,2]
[321707599,1712421045605,-1059.79,0.00022199,2]
[321707600,1712421045618,-1059.79,0.00022199,2]
[321707601,1712421045628,-558.35,0.00022199,2]
[321707602,1712421045639,-558.35,0.00022199,2]
[321707603,1712421045649,-558.35,0.00022199,2]
[321707604,1712421045659,-558.35,0.00022199,2]
[321707605,1712421045669,-558.35,0.00022199,2]
[321707606,1712421045679,-821.64,0.00022199,2]
[321707607,1712421045690,-821.64,0.00022199,2]
[321707608,1712421045699,-821.64,0.00022199,2]
[321707609,1712421045709,-821.64,0.00022199,2]
[321707610,1712421045719,-821.64,0.00022199,2]
[321707611,1712421045728,-811.29,0.00022199,2]
[321707612,1712421045738,-811.29,0.00022199,2]
[321707613,1712421045749,-811.29,0.00022199,2]
[321707614,1712421045759,-811.29,0.00022199,2]
[321707615,1712421045768,-811.29,0.00022199,2]
[321707616,1712421045778,-2825.29,0.00022199,2]
[321707617,1712421045788,-2825.29,0.00022199,2]
[321707618,1712421045799,-2825.29,0.00022199,2]
[321707619,1712421045813,-2825.29,0.00022199,2]
[321707620,1712421045823,-2825.29,0.00022199,2]
[321707621,1712421045834,-3240.54,0.00022199,2]
[321707622,1712421045845,-3240.54,0.00022199,2]
[321707623,1712421045855,-3240.54,0.00022199,2]
[321707624,1712421045865,-3240.54,0.00022199,2]
[321707625,1712421045875,-3240.54,0.00022199,2]
[321707626,1712421045884,-500.0,0.00022199,2]
[321707627,1712421045895,-500.0,0.00022199,2]
[321707628,1712421045905,-500.0,0.00022199,2]
[321707629,1712421045914,-500.0,0.00022199,2]
[321707630,1712421045924,-500.0,0.00022199,2]
[321707631,1712421045934,-2190.69,0.00022199,2]
[321707632,1712421045943,-2190.69,0.00022199,2]
[321707633,1712421045953,-2190.69,0.00022199,2]
[321707634,1712421045963,-2190.69,0.00022199,2]
[321707637,1712421045973,-2190.69,0.00022199,2]
[321707639,1712421045982,-500.0,0.00022199,2]
[321707641,1712421045992,-500.0,0.00022199,2]
[321707643,1712421046001,-500.0,0.00022199,2]
[321707644,1712421046012,-500.0,0.00022199,2]
[321707645,1712421046022,-500.0,0.00022199,2]
[321707646,1712421046032,-500.0,0.00022199,2]
[321707647,1712421046041,-500.0,0.00022199,2]
[321707648,1712421046051,-500.0,0.00022199,2]
[321707649,1712421046061,-500.0,0.00022199,2]
[321707650,1712421046070,-500.0,0.00022199,2]
[321707651,1712421046081,-1256.87,0.00022199,2]
[321707652,1712421046310,-1256.87,0.00022199,2]
[321707653,1712421046321,-1256.87,0.00022199,2]
[321707654,1712421046332,-1256.87,0.00022199,2]
[321707655,1712421046343,-1256.87,0.00022199,2]
[321707656,1712421046353,-655.43,0.00022199,2]
[321707657,1712421046369,-655.43,0.00022199,2]
[321707658,1712421046378,-655.43,0.00022199,2]
[321707659,1712421046388,-655.43,0.00022199,2]
[321707660,1712421046397,-655.43,0.00022199,2]
[321707661,1712421046407,-1380.55,0.00022199,2]
[321707662,1712421046416,-1380.55,0.00022199,2]
[321707663,1712421046426,-1380.55,0.00022199,2]
[321707664,1712421046435,-1380.55,0.00022199,2]
[321707665,1712421046445,-1380.55,0.00022199,2]
[321707666,1712421046454,-505.94,0.00022199,2]
[321707667,1712421046465,-505.94,0.00022199,2]
[321707668,1712421046476,-505.94,0.00022199,2]
[321707669,1712421046486,-505.94,0.00022199,2]
[321707670,1712421046496,-505.94,0.00022199,2]
[321707671,1712421046506,-591.8,0.00022199,2]
[321707672,1712421046516,-591.8,0.00022199,2]
[321707673,1712421046526,-591.8,0.00022199,2]
[321707674,1712421046535,-591.8,0.00022199,2]
[321707675,1712421046545,-591.8,0.00022199,2]
[321707676,1712421046554,-953.8,0.00022199,2]
[321707677,1712421046563,-953.8,0.00022199,2]
[321707678,1712421046573,-953.8,0.00022199,2]
[321707679,1712421046583,-953.8,0.00022199,2]
[321707680,1712421046592,-953.8,0.00022199,2]
[321707681,1712421046601,-500.0,0.00022199,2]
[321707682,1712421046611,-500.0,0.00022199,2]
[321707683,1712421046620,-500.0,0.00022199,2]
[321707684,1712421046629,-500.0,0.00022199,2]
[321707685,1712421046639,-500.0,0.00022199,2]
[321707686,1712421046648,-500.0,0.00022199,2]
[321707687,1712421046658,-175.6752983,0.00022199,2]
[321707688,1712421046667,-500.0,0.00022199,2]
[321707689,1712421046677,-500.0,0.00022199,2]
[321707690,1712421046686,-500.0,0.00022199,2]
[321707691,1712421046696,-500.0,0.00022199,2]
[321707692,1712421046705,-500.0,0.00022199,2]
[321707693,1712421046715,-2139.28,0.00022199,2]
[321707694,1712421046725,-2139.28,0.00022199,2]
[321707695,1712421046734,-2139.28,0.00022199,2]
[321707696,1712421046743,-2508.53,0.00022199,2]
[321707697,1712421046753,-2139.28,0.00022199,2]
[321707698,1712421046763,-2508.53,0.00022199,2]
[321707699,1712421046772,-2139.28,0.00022199,2]
[321707700,1712421046782,-2508.53,0.00022199,2]
[321707701,1712421046791,-2508.53,0.00022199,2]
[321707702,1712421046801,-2508.53,0.00022199,2]
[321707703,1712421046810,-500.0,0.00022199,2]
[321707704,1712421046819,-500.0,0.00022199,2]
[321707705,1712421046833,-500.0,0.00022199,2]
[321707706,1712421046842,-500.0,0.00022199,2]
[321707707,1712421046852,-500.0,0.00022199,2]
[321707708,1712421046861,-807.17,0.00022199,2]
[321707709,1712421046870,-2181.0,0.000222,2]
[321707710,1712421046881,-1048459.67225021,0.000222,2]
[321707711,1712421046890,-257.31134319,0.00022208,4]
[321707712,1712421046901,-1079.88322803,0.00022209,2]
[321707713,1712421046911,-150.0,0.00022211,4]
[321707714,1712421046920,-621.1073052,0.0002222,2]
[321707715,1712421046929,-257.31134319,0.00022232,4]
[321707716,1712421046939,-150.0,0.00022233,4]
[321707717,1712421046948,-150.0,0.00022241,4]
[321707718,1712421046957,-1660.04604148,0.00022248,2]
[321707719,1712421046967,-257.31134319,0.00022255,4]
[321707720,1712421046976,-150.0,0.00022272,4]
[321707721,1712421046985,-150.0,0.00022274,4]
[321707722,1712421046995,-257.31134319,0.00022279,4]
[321707723,1712421047005,-150.0,0.00022279,4]
[321707724,1712421047014,-257.31134319,0.00022302,4]
[321707725,1712421047023,-150.0,0.00022303,4]
[321707726,1712421047033,-511.0,0.00022305,2]
[321707727,1712421047043,-150.0,0.00022316,4]
[321707728,1712421047054,-257.31134319,0.00022326,4]
[321707729,1712421047063,-150.0,0.00022333,4]
[321707730,1712421047073,-307.12916528,0.00022339,2]
[321707731,1712421047083,-257.31134319,0.00022349,4]
[321707732,1712421047093,-7875.82827467,0.00022355,2]
[321707733,1712421047102,-150.0,0.00022357,4]
[321707734,1712421047112,-150.0,0.00022364,4]
[321707735,1712421047121,-257.31134319,0.00022373,4]
[321707736,1712421047131,-150.0,0.00022395,4]
[321707737,1712421047141,-156.82066819,0.00022396,2]
[321707738,1712421047150,-257.31134319,0.00022397,4]
[321707739,1712421047160,-150.0,0.00022399,4]
[321707740,1712421047169,-150.0,0.00022408,4]
[321707741,1712421047178,-257.31134319,0.0002242,4]
[321707742,1712421047188,-150.0,0.00022425,4]
[321707743,1712421047198,-150.0,0.00022441,4]
[321707744,1712421047208,-257.31134319,0.00022444,4]
[321707745,1712421047217,-150.0,0.00022456,4]
[321707746,1712421047227,-257.31134319,0.00022467,4]
[321707747,1712421047236,-150.0,0.00022482,4]
[321707748,1712421047245,-150.0,0.00022487,4]
[321707749,1712421047255,-257.31134319,0.00022491,4]
[321707750,1712421047265,-3846.26609095,0.00022502,2]
[321707751,1712421047274,-336.4487128,0.00022509,2]
[321707752,1712421047283,-257.31134319,0.00022514,4]
[321707753,1712421047293,-150.0,0.00022517,4]
[321707754,1712421047302,-150.0,0.00022524,4]
[321707755,1712421047311,-257.31134319,0.00022538,4]
[321707756,1712421047321,-150.0,0.00022538,4]
[321707757,1712421047330,-150.0,0.00022538,4]
[321707758,1712421047339,-1079.88322803,0.00022545,2]
[321707759,1712421047348,-150.0,0.00022548,4]
[321707760,1712421047358,-621.1073052,0.00022551,2]
[321707761,1712421047367,-257.31134319,0.00022561,4]
[321707762,1712421047376,-150.0,0.00022566,4]
[321707763,1712421047385,-307.12916528,0.00022572,2]
[321707764,1712421047395,-150.0,0.00022579,4]
[321707765,1712421047405,-257.31134319,0.00022585,4]
[321707766,1712421047414,-150.0,0.00022607,4]
[321707767,1712421047424,-257.31134319,0.00022609,4]
[321707768,1712421047433,-150.0,0.00022609,4]
[321707769,1712421047442,-7875.82827467,0.0002261,2]
[321707770,1712421047451,-1660.04604148,0.00022624,2]
[321707771,1712421047461,-257.31134319,0.00022632,4]
[321707772,1712421047470,-150.0,0.0002264,4]
[321707773,1712421047479,-150.0,0.00022649,4]
[321707774,1712421047488,-257.31134319,0.00022656,4]
[321707775,1712421047498,-354.0,0.00022666,2]
[321707776,1712421047507,-214.0,0.00022666,2]
[321707777,1712421047516,-150.0,0.00022667,4]
[321707778,1712421047525,-150.0,0.00022671,4]
[321707779,1712421047534,-257.31134319,0.00022679,4]
[321707780,1712421047543,-150.0,0.00022691,4]
[321707781,1712421047553,-150.0,0.00022702,4]
[321707782,1712421047562,-257.31134319,0.00022703,4]
[321707783,1712421047571,-257.31134319,0.00022726,4]
[321707784,1712421047580,-150.0,0.00022732,4]
[321707785,1712421047589,-150.0,0.00022732,4]
[321707786,1712421047599,-257.31134319,0.0002275,4]
[321707787,1712421047609,-150.0,0.00022763,4]
[321707788,1712421047618,-257.31134319,0.00022773,4]
[321707789,1712421047627,-150.0,0.00022774,4]
[321707790,1712421047636,-587.08785,0.0002279,2]
[321707791,1712421047645,-150.0,0.00022794,4]
[321707792,1712421047655,-257.31134319,0.00022797,4]
[321707793,1712421047664,-150.0,0.00022797,4]
[321707794,1712421047673,-307.12916528,0.00022804,2]
[321707795,1712421047682,-150.0,0.00022815,4]
[321707796,1712421047692,-257.31134319,0.00022821,4]
[321707797,1712421047701,-150.0,0.00022824,4]
[321707798,1712421047710,-3846.26609095,0.00022844,2]
[321707799,1712421047720,-257.31134319,0.00022844,4]
[321707800,1712421047729,-150.0,0.00022855,4]
[321707801,1712421047739,-150.0,0.00022857,4]
[321707802,1712421047748,-7875.82827467,0.00022864,2]
[321707803,1712421047757,-257.31134319,0.00022868,4]
[321707804,1712421047766,-621.1073052,0.00022881,2]
[321707805,1712421047776,-1079.88322803,0.00022881,2]
[321707806,1712421047785,-150.0,0.00022886,4]
[321707807,1712421047794,-257.31134319,0.00022891,4]
[321707808,1712421047808,-156.82066819,0.00022897,2]
[321707809,1712421047817,-150.0,0.00022899,4]
[321707810,1712421047827,-500.0,0.00022899,2]
[321707811,1712421047838,-500.0,0.00022899,2]
[321707812,1712421047849,-1380.55,0.00022899,2]
[321707813,1712421047859,-500.0,0.00022899,2]
[321707814,1712421047868,-4960.78841759,0.000229,2]
[321707815,1712421047878,-4960.78841759,0.000229,2]
[321707816,1712421047889,-4960.78841759,0.000229,2]
[321707817,1712421047898,-4960.78841759,0.000229,2]
[321707818,1712421047907,-4960.78841759,0.000229,2]
[321707819,1712421047917,-9589.6215,0.00022906,2]
[321707820,1712421047926,-257.31134319,0.00022915,4]
[321707821,1712421047936,-150.0,0.00022916,4]
[321707822,1712421047945,-150.0,0.00022926,4]
[321707823,1712421047955,-4960.78841759,0.00022929,2]
[321707824,1712421047964,-173.0,0.00022931,2]
[321707825,1712421047974,-154.059,0.00022931,2]
[321707826,1712421047983,-265.79,0.00022931,2]
[321707827,1712421047992,-257.31134319,0.00022938,4]
[321707828,1712421048001,-150.0,0.0002294,4]
[321707829,1712421048010,-150.0,0.00022947,4]
[321707830,1712421048019,-257.31134319,0.00022962,4]
[321707831,1712421048029,-1059.79,0.00022964,2]
[321707832,1712421048038,-558.35,0.00022964,2]
[321707833,1712421048047,-811.29,0.00022964,2]
[321707834,1712421048056,-655.43,0.00022964,2]
[321707835,1712421048066,-953.8,0.00022964,2]
[321707836,1712421048075,-500.0,0.00022964,2]
[321707837,1712421048087,-2508.53,0.00022964,2]
[321707838,1712421048097,-4790.0,0.00022965,2]
[321707839,1712421048106,-5703.0,0.00022965,2]
[321707840,1712421048115,-11767.058,0.00022965,2]
[321707841,1712421048125,-1943.0,0.00022965,2]
[321707842,1712421048134,-150.0,0.00022978,4]
[321707843,1712421048143,-262.11,0.00022978,2]
[321707844,1712421048152,-150.0,0.00022982,4]
[321707845,1712421048161,-257.31134319,0.00022985,4]
[321707846,1712421048171,-1660.04604148,0.00022999,2]
[321707847,1712421048180,-4960.78841759,0.00023,2]
[321707848,1712421048191,-1000.0,0.00023,2]
[321707849,1712421048201,-1000.0,0.00023,2]
[321707850,1712421048210,-306.87494845,0.00023,2]
[321707851,1712421048220,-1500.0,0.00023,3]
[321707852,1712421048230,-150.0,0.00023,2]
[321707853,1712421048239,-838.034984,0.00023004,2]
[321707854,1712421048249,-500.0,0.00023004,2]
[321707855,1712421048258,-150.0,0.00023008,4]
[321707856,1712421048268,-257.31134319,0.00023009,4]
[321707857,1712421048277,-150.0,0.00023024,4]
[321707858,1712421048286,-257.31134319,0.00023032,4]
[321707859,1712421048296,-307.12916528,0.00023037,2]
[321707860,1712421048305,-150.0,0.00023039,4]
[321707861,1712421048315,-257.31134319,0.00023056,4]
[321707862,1712421048324,-150.0,0.00023056,4]
[321707863,1712421048334,-150.0,0.00023065,4]
[321707864,1712421048343,-150.0,0.0002307,4]
[321707865,1712421048353,-4960.78841759,0.0002307,2]
[321707866,1712421048362,-257.31134319,0.0002308,4]
[321707867,1712421048371,-409.01213196,0.00023085,2]
[321707868,1712421048381,-155.0,0.00023092,2]
[321707869,1712421048392,-155.7454725,0.00023092,2]
[321707870,1712421048401,-150.0,0.000231,4]
[321707871,1712421048411,-155.0,0.00023101,2]
[321707872,1712421048421,-171.87146319,0.00023102,2]
[321707873,1712421048431,-1961.08780591,0.00023102,2]
[321707874,1712421048440,-257.31134319,0.00023103,4]
[321707875,1712421048450,-150.0,0.00023107,4]
[321707876,1712421048459,-500.0,0.00023112,2]
[321707877,1712421048469,-7875.82827467,0.00023119,2]
[321707878,1712421048478,-257.31134319,0.00023127,4]
[321707879,1712421048488,-2376.90179403,0.00023129,2]
[321707880,1712421048497,-7700.14242891,0.00023129,2]
[321707881,1712421048507,-150.0,0.00023131,4]